[Event "*** SCC Grand Prix: Titled Tuesday Blitz"]
[Site "Chess.com"]
[Date "2020.07.14"]
[Round "4"]
[White "sergivila"]
[Black "TheNextLevelFan"]
[Result "0-1"]
[WhiteElo "2358"]
[BlackElo "2540"]
[TimeControl "180+1"]
[EndTime "10:39:59 PDT"]
[Termination "TheNextLevelFan won by resignation"]

1. e4 {[%clk 0:03:00.9]} 1... e5 {[%clk 0:02:59.1]} 2. Nf3 {[%clk 0:03:00.6]}
2... Nc6 {[%clk 0:02:58.7]} 3. d4 {[%clk 0:03:00.9]} 3... exd4 {[%clk
0:02:57.4]} 4. Nxd4 {[%clk 0:03:01.8]} 4... Bb4+ {[%clk 0:02:56.6]} 5. c3 {[%clk
0:03:00.4]} 5... Bc5 {[%clk 0:02:57]} 6. Be3 {[%clk 0:03:00.5]} 6... Bb6 {[%clk
0:02:56.8]} 7. Nf5 {[%clk 0:03:01]} 7... Bxe3 {[%clk 0:02:55.7]} 8. Nxe3 {[%clk
0:03:01.9]} 8... d6 {[%clk 0:02:53.5]} 9. c4 {[%clk 0:03:01.6]} 9... Nge7 {[%clk
0:02:48]} 10. Nc3 {[%clk 0:03:01.5]} 10... O-O {[%clk 0:02:48.2]} 11. Be2 {[%clk
0:02:58.9]} 11... f5 {[%clk 0:02:48.2]} 12. exf5 {[%clk 0:02:57.3]} 12... Nxf5
{[%clk 0:02:48.4]} 13. Nxf5 {[%clk 0:02:57.1]} 13... Bxf5 {[%clk 0:02:48.1]} 14.
O-O {[%clk 0:02:56.9]} 14... Kh8 {[%clk 0:02:42.6]} 15. Qd2 {[%clk 0:02:51.6]}
15... Ne5 {[%clk 0:02:38.6]} 16. Nd5 {[%clk 0:02:45.7]} 16... Rf7 {[%clk
0:02:31.5]} 17. Rad1 {[%clk 0:02:40.9]} 17... Qh4 {[%clk 0:02:30.4]} 18. b3
{[%clk 0:02:31.9]} 18... Raf8 {[%clk 0:02:29.1]} 19. Ne3 {[%clk 0:02:29.6]}
19... Be4 {[%clk 0:02:23.6]} 20. f3 {[%clk 0:02:19]} 20... Bc6 {[%clk
0:02:21.1]} 21. Nd5 {[%clk 0:02:05.9]} 21... Ng6 {[%clk 0:02:13.2]} 22. g3
{[%clk 0:02:02.2]} 22... Qh3 {[%clk 0:02:08.9]} 23. Rf2 {[%clk 0:01:54.1]} 23...
h6 {[%clk 0:01:55.6]} 24. f4 {[%clk 0:01:49.7]} 24... Qd7 {[%clk 0:01:23.8]} 25.
Qd3 {[%clk 0:01:40.8]} 25... Ne7 {[%clk 0:01:23.9]} 26. Bf3 {[%clk 0:01:30.3]}
26... Nxd5 {[%clk 0:01:22.6]} 27. Bxd5 {[%clk 0:01:29.6]} 27... Re7 {[%clk
0:01:22.7]} 28. Bxc6 {[%clk 0:01:21]} 28... Qxc6 {[%clk 0:01:22.6]} 29. Re2
{[%clk 0:01:20.1]} 29... Qc5+ {[%clk 0:01:21.7]} 30. Kf1 {[%clk 0:01:16.7]}
30... Rfe8 {[%clk 0:01:16.4]} 31. Rde1 {[%clk 0:01:15.9]} 31... Rxe2 {[%clk
0:00:53.4]} 32. Rxe2 {[%clk 0:01:16.8]} 32... Rxe2 {[%clk 0:00:53.5]} 33. Qxe2
{[%clk 0:01:17.1]} 33... Qd4 {[%clk 0:00:46]} 34. Kg2 {[%clk 0:01:14.7]} 34...
c6 {[%clk 0:00:42.2]} 35. Kf3 {[%clk 0:01:10.4]} 35... d5 {[%clk 0:00:42.5]} 36.
cxd5 {[%clk 0:01:09.3]} 36... Qxd5+ {[%clk 0:00:42.6]} 37. Kf2 {[%clk
0:01:01.7]} 37... a5 {[%clk 0:00:42.8]} 38. g4 {[%clk 0:00:55.1]} 38... b5
{[%clk 0:00:40]} 39. Qc2 {[%clk 0:00:50]} 39... c5 {[%clk 0:00:36.5]} 40. f5
{[%clk 0:00:45.8]} 40... c4 {[%clk 0:00:34.7]} 41. bxc4 {[%clk 0:00:45.4]} 41...
bxc4 {[%clk 0:00:35]} 42. Qe2 {[%clk 0:00:43.4]} 42... Kh7 {[%clk 0:00:31.6]}
43. Qc2 {[%clk 0:00:36]} 43... Kg8 {[%clk 0:00:27.1]} 44. Qe2 {[%clk 0:00:35.2]}
44... Kf7 {[%clk 0:00:26.9]} 45. Qe3 {[%clk 0:00:31.6]} 45... Kf6 {[%clk
0:00:25.9]} 46. h4 {[%clk 0:00:29.6]} 46... Kf7 {[%clk 0:00:21.6]} 47. Qa7+
{[%clk 0:00:28.5]} 47... Kf6 {[%clk 0:00:21.1]} 48. Qb6+ {[%clk 0:00:24.9]}
48... Ke5 {[%clk 0:00:18.7]} 49. Qe3+ {[%clk 0:00:22.7]} 49... Kf6 {[%clk
0:00:18.3]} 50. Qb6+ {[%clk 0:00:22.3]} 50... Ke5 {[%clk 0:00:16.1]} 51. Qe3+
{[%clk 0:00:19.9]} 51... Qe4 {[%clk 0:00:16.4]} 52. Qc5+ {[%clk 0:00:19.4]}
52... Kf4 {[%clk 0:00:15.9]} 53. Qd6+ {[%clk 0:00:17.1]} 53... Kxg4 {[%clk
0:00:15.5]} 54. Qg6+ {[%clk 0:00:17.3]} 54... Kxh4 {[%clk 0:00:15]} 55. Qxg7
{[%clk 0:00:17.5]} 55... Qxf5+ {[%clk 0:00:15.2]} 56. Ke3 {[%clk 0:00:17.8]}
56... Qg5+ {[%clk 0:00:15]} 0-1

[Event "*** SCC Grand Prix: Titled Tuesday Blitz"]
[Site "Chess.com"]
[Date "2020.07.14"]
[Round "4"]
[White "Alindsay211"]
[Black "amatatanav"]
[Result "0-1"]
[WhiteElo "2298"]
[BlackElo "2464"]
[TimeControl "180+1"]
[EndTime "10:40:01 PDT"]
[Termination "amatatanav won by resignation"]

1. e4 {[%clk 0:03:00.9]} 1... c5 {[%clk 0:02:46.6]} 2. Nf3 {[%clk 0:03:00.9]}
2... Nc6 {[%clk 0:02:45.4]} 3. d4 {[%clk 0:03:01]} 3... cxd4 {[%clk 0:02:42.4]}
4. Nxd4 {[%clk 0:03:01.9]} 4... g6 {[%clk 0:02:42.1]} 5. c4 {[%clk 0:02:56.9]}
5... Nf6 {[%clk 0:02:41.8]} 6. Nc3 {[%clk 0:02:56]} 6... d6 {[%clk 0:02:42.2]}
7. Be2 {[%clk 0:02:55.7]} 7... Nxd4 {[%clk 0:02:42]} 8. Qxd4 {[%clk 0:02:55.5]}
8... Bg7 {[%clk 0:02:42.9]} 9. Be3 {[%clk 0:02:52.1]} 9... O-O {[%clk
0:02:41.7]} 10. Qd2 {[%clk 0:02:51.1]} 10... Be6 {[%clk 0:02:39.1]} 11. O-O
{[%clk 0:02:50]} 11... Qa5 {[%clk 0:02:34]} 12. Bh6 {[%clk 0:02:43.7]} 12...
Rfc8 {[%clk 0:01:58.7]} 13. Bxg7 {[%clk 0:02:41.6]} 13... Kxg7 {[%clk
0:01:59.6]} 14. Qd4 {[%clk 0:02:02.7]} 14... Qb6 {[%clk 0:01:02.2]} 15. Qxb6
{[%clk 0:01:51.6]} 15... axb6 {[%clk 0:01:03.1]} 16. b3 {[%clk 0:01:51.1]} 16...
b5 {[%clk 0:01:03.7]} 17. Nxb5 {[%clk 0:01:50.4]} 17... Nxe4 {[%clk 0:01:03.7]}
18. Bf3 {[%clk 0:01:37.9]} 18... Nc5 {[%clk 0:00:28.8]} 19. Rfe1 {[%clk
0:01:31.2]} 19... Kf8 {[%clk 0:00:22.5]} 20. Nd4 {[%clk 0:01:17.8]} 20... Bd7
{[%clk 0:00:22.3]} 21. Re3 {[%clk 0:00:21]} 21... Ra7 {[%clk 0:00:21.5]} 22. a4
{[%clk 0:00:18.9]} 22... e5 {[%clk 0:00:15.8]} 23. Nc2 {[%clk 0:00:17.9]} 23...
f5 {[%clk 0:00:13.9]} 24. Rb1 {[%clk 0:00:15.4]} 24... f4 {[%clk 0:00:11.8]} 25.
Rc3 {[%clk 0:00:08.3]} 25... Bf5 {[%clk 0:00:10.7]} 26. Rc1 {[%clk 0:00:06.6]}
26... Ne6 {[%clk 0:00:06.9]} 27. Bd5 {[%clk 0:00:05.8]} 27... Ke7 {[%clk
0:00:06.1]} 28. Bxe6 {[%clk 0:00:05.4]} 28... Kxe6 {[%clk 0:00:05.9]} 29. f3
{[%clk 0:00:05.8]} 29... Ra6 {[%clk 0:00:05]} 30. Nb4 {[%clk 0:00:06.3]} 30...
Rb6 {[%clk 0:00:04.2]} 31. Nd5 {[%clk 0:00:04.6]} 31... Ra6 {[%clk 0:00:04.1]}
32. Rd1 {[%clk 0:00:05.1]} 32... Rb8 {[%clk 0:00:01.7]} 33. Kf2 {[%clk
0:00:05.5]} 33... Rc8 {[%clk 0:00:02]} 34. Rcc1 {[%clk 0:00:05.9]} 34... h6
{[%clk 0:00:02.2]} 35. Rd2 {[%clk 0:00:05.7]} 35... g5 {[%clk 0:00:02.6]} 36.
Rcd1 {[%clk 0:00:05.7]} 36... Rd8 {[%clk 0:00:02.2]} 37. Nc3 {[%clk 0:00:06.1]}
37... Rb6 {[%clk 0:00:02.1]} 38. Nb5 {[%clk 0:00:06.7]} 38... Ke7 {[%clk
0:00:02.3]} 39. Rd5 {[%clk 0:00:07]} 39... Be6 {[%clk 0:00:02.3]} 40. Rxd6
{[%clk 0:00:07.5]} 40... Rbxd6 {[%clk 0:00:02.4]} 41. Rxd6 {[%clk 0:00:08.2]}
41... Rxd6 {[%clk 0:00:03.3]} 42. Nxd6 {[%clk 0:00:08.7]} 42... Kxd6 {[%clk
0:00:04.2]} 43. Ke2 {[%clk 0:00:08.7]} 43... Kc5 {[%clk 0:00:04.2]} 44. Kd3
{[%clk 0:00:08.9]} 44... Kb4 {[%clk 0:00:04.4]} 45. Ke4 {[%clk 0:00:09.7]} 45...
Kxb3 {[%clk 0:00:04.7]} 46. Kxe5 {[%clk 0:00:10.4]} 46... Bxc4 {[%clk 0:00:05]}
47. h4 {[%clk 0:00:11]} 47... Bf1 {[%clk 0:00:03.8]} 48. hxg5 {[%clk 0:00:11.4]}
48... hxg5 {[%clk 0:00:04.6]} 49. a5 {[%clk 0:00:10.3]} 49... Bxg2 {[%clk
0:00:04]} 50. a6 {[%clk 0:00:10.3]} 50... bxa6 {[%clk 0:00:03.9]} 0-1

[Event "*** SCC Grand Prix: Titled Tuesday Blitz"]
[Site "Chess.com"]
[Date "2020.07.14"]
[Round "4"]
[White "Iustin106"]
[Black "Vandros57"]
[Result "1-0"]
[WhiteElo "2317"]
[BlackElo "2123"]
[TimeControl "180+1"]
[EndTime "10:40:01 PDT"]
[Termination "Iustin106 won on time"]

1. d4 {[%clk 0:03:00.9]} 1... d5 {[%clk 0:02:58.5]} 2. c4 {[%clk 0:03:01.1]}
2... e6 {[%clk 0:02:57.7]} 3. Nf3 {[%clk 0:02:58.6]} 3... Nf6 {[%clk 0:02:56.9]}
4. g3 {[%clk 0:02:58.6]} 4... dxc4 {[%clk 0:02:50.5]} 5. Bg2 {[%clk 0:02:58.5]}
5... c5 {[%clk 0:02:47.1]} 6. O-O {[%clk 0:02:58.3]} 6... Nc6 {[%clk 0:02:43.4]}
7. Qa4 {[%clk 0:02:56.8]} 7... Bd7 {[%clk 0:02:36]} 8. Qxc4 {[%clk 0:02:56.1]}
8... Rc8 {[%clk 0:02:08.5]} 9. Nc3 {[%clk 0:02:52.3]} 9... cxd4 {[%clk
0:02:06.8]} 10. Nxd4 {[%clk 0:02:53.2]} 10... Nxd4 {[%clk 0:02:05.9]} 11. Qxd4
{[%clk 0:02:54.1]} 11... Bc6 {[%clk 0:02:03.4]} 12. Qxd8+ {[%clk 0:02:47]} 12...
Kxd8 {[%clk 0:02:02.5]} 13. Bg5 {[%clk 0:02:47.1]} 13... Bxg2 {[%clk 0:01:59.5]}
14. Kxg2 {[%clk 0:02:36]} 14... Be7 {[%clk 0:01:53.7]} 15. Rac1 {[%clk
0:02:27.8]} 15... Nd7 {[%clk 0:01:45.8]} 16. Be3 {[%clk 0:02:21.8]} 16... a6
{[%clk 0:01:39.9]} 17. Rfd1 {[%clk 0:02:18.6]} 17... Bc5 {[%clk 0:01:26.8]} 18.
Bxc5 {[%clk 0:02:06.3]} 18... Rxc5 {[%clk 0:01:25.9]} 19. Ne4 {[%clk 0:02:06.9]}
19... Rxc1 {[%clk 0:01:23.9]} 20. Rxc1 {[%clk 0:02:07.8]} 20... Ke7 {[%clk
0:01:07.6]} 21. Rc7 {[%clk 0:02:05.4]} 21... b6 {[%clk 0:00:55.5]} 22. b4 {[%clk
0:01:17.4]} 22... Ra8 {[%clk 0:00:51.5]} 23. a4 {[%clk 0:01:13.3]} 23... a5
{[%clk 0:00:49.1]} 24. b5 {[%clk 0:01:12]} 24... f6 {[%clk 0:00:48.1]} 25. Rc6
{[%clk 0:01:09.6]} 25... Ra7 {[%clk 0:00:41]} 26. Nd6 {[%clk 0:01:05.3]} 26...
Ra8 {[%clk 0:00:37.3]} 27. Nc8+ {[%clk 0:01:03]} 27... Kd8 {[%clk 0:00:34.4]}
28. Nxb6 {[%clk 0:01:02.3]} 28... Nxb6 {[%clk 0:00:34]} 29. Rxb6 {[%clk
0:01:03.2]} 29... Ke7 {[%clk 0:00:29]} 30. Kf3 {[%clk 0:01:02.3]} 30... h5
{[%clk 0:00:24.6]} 31. Ke3 {[%clk 0:00:59.9]} 31... g5 {[%clk 0:00:24]} 32. h3
{[%clk 0:00:59.6]} 32... f5 {[%clk 0:00:22.4]} 33. Ra6 {[%clk 0:00:55.4]} 33...
Rc8 {[%clk 0:00:21.5]} 34. Rxa5 {[%clk 0:00:55.1]} 34... Rc4 {[%clk 0:00:21.1]}
35. Ra8 {[%clk 0:00:53.3]} 35... Kf6 {[%clk 0:00:20.7]} 36. b6 {[%clk
0:00:53.3]} 36... Rb4 {[%clk 0:00:19.7]} 37. a5 {[%clk 0:00:53.2]} 37... Ke5
{[%clk 0:00:19.3]} 38. Rc8 {[%clk 0:00:47.5]} 38... Rb5 {[%clk 0:00:18]} 39. Rc3
{[%clk 0:00:42.2]} 39... Rxa5 {[%clk 0:00:16.9]} 40. b7 {[%clk 0:00:42.4]} 40...
Rb5 {[%clk 0:00:16.5]} 41. Rc7 {[%clk 0:00:42.9]} 41... f4+ {[%clk 0:00:14.9]}
42. gxf4+ {[%clk 0:00:42.7]} 42... gxf4+ {[%clk 0:00:15]} 43. Kf3 {[%clk
0:00:43.4]} 43... Rb3+ {[%clk 0:00:14.5]} 44. e3 {[%clk 0:00:41.4]} 44... fxe3
{[%clk 0:00:14]} 45. fxe3 {[%clk 0:00:42.3]} 45... Kd6 {[%clk 0:00:14]} 46. Rh7
{[%clk 0:00:42]} 46... e5 {[%clk 0:00:11]} 47. Ke4 {[%clk 0:00:39.9]} 47... Rb4+
{[%clk 0:00:10.1]} 48. Kf5 {[%clk 0:00:40.1]} 48... e4 {[%clk 0:00:08.9]} 49.
Kg5 {[%clk 0:00:36.6]} 49... Rb5+ {[%clk 0:00:07.6]} 50. Kf4 {[%clk 0:00:36.1]}
50... Rb4 {[%clk 0:00:06.8]} 51. h4 {[%clk 0:00:36]} 51... Ke6 {[%clk 0:00:06]}
52. Kg5 {[%clk 0:00:30.7]} 52... Rb5+ {[%clk 0:00:05.7]} 53. Kg6 {[%clk
0:00:31.2]} 53... Rb3 {[%clk 0:00:04.1]} 54. Kxh5 {[%clk 0:00:29]} 54... Kf6
{[%clk 0:00:01.7]} 55. Kg4 {[%clk 0:00:28.9]} 1-0

[Event "*** SCC Grand Prix: Titled Tuesday Blitz"]
[Site "Chess.com"]
[Date "2020.07.14"]
[Round "4"]
[White "Maxim_e2e4"]
[Black "Chessmasterzt"]
[Result "1-0"]
[WhiteElo "2409"]
[BlackElo "2584"]
[TimeControl "180+1"]
[EndTime "10:40:03 PDT"]
[Termination "Maxim_e2e4 won by resignation"]

1. e4 {[%clk 0:02:26.9]} 1... c5 {[%clk 0:02:55.8]} 2. Nf3 {[%clk 0:02:26.4]}
2... Nc6 {[%clk 0:02:55.1]} 3. d4 {[%clk 0:02:23.8]} 3... cxd4 {[%clk
0:02:54.7]} 4. Nxd4 {[%clk 0:02:24.7]} 4... e5 {[%clk 0:02:50.7]} 5. Nb5 {[%clk
0:02:23.7]} 5... d6 {[%clk 0:02:51.2]} 6. c4 {[%clk 0:02:23.9]} 6... Be7 {[%clk
0:02:42.9]} 7. N5c3 {[%clk 0:02:05.8]} 7... Be6 {[%clk 0:02:31.6]} 8. Be2 {[%clk
0:01:57.2]} 8... Bg5 {[%clk 0:02:03.9]} 9. Bxg5 {[%clk 0:01:56.1]} 9... Qxg5
{[%clk 0:02:04.8]} 10. Nb5 {[%clk 0:01:56]} 10... Rd8 {[%clk 0:01:55.8]} 11.
Nc7+ {[%clk 0:01:50.9]} 11... Kf8 {[%clk 0:01:42.1]} 12. O-O {[%clk 0:01:45.2]}
12... Nf6 {[%clk 0:01:29.2]} 13. Nc3 {[%clk 0:01:43.6]} 13... h5 {[%clk
0:01:21.5]} 14. Nxe6+ {[%clk 0:00:45.6]} 14... fxe6 {[%clk 0:01:22.4]} 15. Qb3
{[%clk 0:00:44.8]} 15... b6 {[%clk 0:01:11.9]} 16. Qa3 {[%clk 0:00:43]} 16...
Nd4 {[%clk 0:01:03.9]} 17. Qxa7 {[%clk 0:00:39.5]} 17... Nxe4 {[%clk 0:01:04]}
18. Nxe4 {[%clk 0:00:35.1]} 18... Nxe2+ {[%clk 0:01:01.8]} 19. Kh1 {[%clk
0:00:35.4]} 19... Qg6 {[%clk 0:00:54]} 20. Ng3 {[%clk 0:00:33.9]} 20... Nf4
{[%clk 0:00:48.6]} 21. Qxb6 {[%clk 0:00:33.3]} 21... Ke7 {[%clk 0:00:48.4]} 22.
Qb7+ {[%clk 0:00:26.3]} 22... Rd7 {[%clk 0:00:48.2]} 23. Qe4 {[%clk 0:00:27.2]}
23... Qg4 {[%clk 0:00:34.5]} 24. h3 {[%clk 0:00:26.4]} 24... Qg5 {[%clk
0:00:29.9]} 25. Ne2 {[%clk 0:00:26]} 25... Nxe2 {[%clk 0:00:16.4]} 26. Qxe2
{[%clk 0:00:25.9]} 26... Rf8 {[%clk 0:00:15.8]} 27. a4 {[%clk 0:00:24.7]} 27...
Qf4 {[%clk 0:00:15.6]} 28. a5 {[%clk 0:00:24]} 28... Rc7 {[%clk 0:00:14.2]} 29.
b3 {[%clk 0:00:22]} 29... g6 {[%clk 0:00:13.8]} 30. a6 {[%clk 0:00:21.8]} 30...
Ra8 {[%clk 0:00:14.3]} 31. b4 {[%clk 0:00:19.1]} 31... Rxc4 {[%clk 0:00:10.3]}
32. b5 {[%clk 0:00:18.9]} 32... Rb4 {[%clk 0:00:10.7]} 33. Rfb1 {[%clk
0:00:18.9]} 33... Rxb1+ {[%clk 0:00:09.7]} 34. Rxb1 {[%clk 0:00:19.8]} 34... Qf5
{[%clk 0:00:06.7]} 35. Rb2 {[%clk 0:00:18.7]} 35... Qf4 {[%clk 0:00:05.6]} 36.
g3 {[%clk 0:00:18.1]} 36... Qc1+ {[%clk 0:00:05.9]} 37. Kh2 {[%clk 0:00:17.7]}
37... Rc8 {[%clk 0:00:03.3]} 38. a7 {[%clk 0:00:17]} 38... Qa1 {[%clk
0:00:02.3]} 39. b6 {[%clk 0:00:14.8]} 39... Rc1 {[%clk 0:00:02.1]} 40. b7 {[%clk
0:00:12.1]} 40... Rh1+ {[%clk 0:00:01.5]} 41. Kg2 {[%clk 0:00:12.5]} 41... Rg1+
{[%clk 0:00:02.1]} 42. Kf3 {[%clk 0:00:12.2]} 42... Qa3+ {[%clk 0:00:02.7]} 43.
Qe3 {[%clk 0:00:12.1]} 43... Qxb2 {[%clk 0:00:02.5]} 44. b8=Q {[%clk 0:00:12.2]}
44... Qc2 {[%clk 0:00:01.8]} 45. Qb7+ {[%clk 0:00:12.3]} 45... Kf6 {[%clk
0:00:01.7]} 46. a8=Q {[%clk 0:00:12.7]} 46... Qd1+ {[%clk 0:00:01.6]} 47. Qe2
{[%clk 0:00:13]} 47... Qb3+ {[%clk 0:00:01.7]} 48. Qxb3 {[%clk 0:00:12.2]} 48...
e4+ {[%clk 0:00:02.3]} 49. Qexe4 {[%clk 0:00:11.9]} 49... d5 {[%clk 0:00:03.2]}
50. Qf4+ {[%clk 0:00:12]} 1-0

[Event "*** SCC Grand Prix: Titled Tuesday Blitz"]
[Site "Chess.com"]
[Date "2020.07.14"]
[Round "4"]
[White "JSMastropiero"]
[Black "RobPeresian"]
[Result "1-0"]
[WhiteElo "2418"]
[BlackElo "2233"]
[TimeControl "180+1"]
[EndTime "10:40:03 PDT"]
[Termination "JSMastropiero won on time"]

1. d4 {[%clk 0:03:00.9]} 1... d5 {[%clk 0:02:58.3]} 2. c4 {[%clk 0:02:59.8]}
2... e6 {[%clk 0:02:58.3]} 3. Nc3 {[%clk 0:02:58.9]} 3... Be7 {[%clk 0:02:58.6]}
4. cxd5 {[%clk 0:02:52.5]} 4... exd5 {[%clk 0:02:58.1]} 5. Bf4 {[%clk
0:02:52.6]} 5... c6 {[%clk 0:02:58.3]} 6. e3 {[%clk 0:02:51.2]} 6... Qb6 {[%clk
0:02:58.5]} 7. Bd3 {[%clk 0:02:39.3]} 7... Qxb2 {[%clk 0:02:53.5]} 8. Nge2
{[%clk 0:02:37.9]} 8... Bb4 {[%clk 0:01:27.8]} 9. Rc1 {[%clk 0:02:30.3]} 9...
Nf6 {[%clk 0:01:14.6]} 10. O-O {[%clk 0:02:27.7]} 10... O-O {[%clk 0:01:12.8]}
11. Rb1 {[%clk 0:02:15.9]} 11... Qa3 {[%clk 0:01:11.2]} 12. Rb3 {[%clk
0:02:12.1]} 12... Qa5 {[%clk 0:01:10.3]} 13. a3 {[%clk 0:02:10.6]} 13... Be7
{[%clk 0:01:07]} 14. Qb1 {[%clk 0:02:02.7]} 14... Nbd7 {[%clk 0:01:02.4]} 15. h3
{[%clk 0:01:58.8]} 15... Re8 {[%clk 0:01:01.6]} 16. Rc1 {[%clk 0:01:56.3]} 16...
Nf8 {[%clk 0:00:59.2]} 17. Ng3 {[%clk 0:01:14.4]} 17... g6 {[%clk 0:00:55.2]}
18. e4 {[%clk 0:01:07.9]} 18... dxe4 {[%clk 0:00:51.9]} 19. Ngxe4 {[%clk
0:01:08.3]} 19... Nxe4 {[%clk 0:00:41.3]} 20. Nxe4 {[%clk 0:01:06.6]} 20... Ne6
{[%clk 0:00:33]} 21. Be5 {[%clk 0:01:05.4]} 21... Qd8 {[%clk 0:00:29.7]} 22. Bf1
{[%clk 0:00:24.5]} 22... f6 {[%clk 0:00:27.1]} 23. Nxf6+ {[%clk 0:00:20.5]}
23... Bxf6 {[%clk 0:00:26.8]} 24. Rg3 {[%clk 0:00:19.9]} 24... Bxe5 {[%clk
0:00:21.2]} 25. dxe5 {[%clk 0:00:20.8]} 25... Qe7 {[%clk 0:00:14.3]} 26. Bc4
{[%clk 0:00:20.4]} 26... Kh8 {[%clk 0:00:14]} 27. Rd1 {[%clk 0:00:19]} 27... Nf4
{[%clk 0:00:12.7]} 28. Re3 {[%clk 0:00:13.5]} 28... Be6 {[%clk 0:00:12.8]} 29.
Bf1 {[%clk 0:00:12.4]} 29... Rad8 {[%clk 0:00:12.3]} 30. Rc1 {[%clk 0:00:11.4]}
30... Bd5 {[%clk 0:00:11.2]} 31. Kh2 {[%clk 0:00:11.3]} 31... Ne6 {[%clk
0:00:11.1]} 32. g3 {[%clk 0:00:11.4]} 32... Rf8 {[%clk 0:00:11.2]} 33. f4 {[%clk
0:00:11.6]} 33... g5 {[%clk 0:00:11.1]} 34. f5 {[%clk 0:00:10.9]} 34... Nd4
{[%clk 0:00:09.8]} 35. g4 {[%clk 0:00:09.4]} 35... Nf3+ {[%clk 0:00:08.2]} 36.
Kg3 {[%clk 0:00:09.6]} 36... Nxe5 {[%clk 0:00:08.5]} 37. Qb2 {[%clk 0:00:09.2]}
37... Rde8 {[%clk 0:00:08]} 38. Rce1 {[%clk 0:00:09.7]} 38... Qd6 {[%clk
0:00:05.4]} 39. Rxe5 {[%clk 0:00:10]} 39... h5 {[%clk 0:00:03.4]} 40. Kf2 {[%clk
0:00:08.8]} 40... Rxe5 {[%clk 0:00:03.2]} 41. Rxe5 {[%clk 0:00:08.8]} 41... Qf6
{[%clk 0:00:03.2]} 42. Qe2 {[%clk 0:00:06.9]} 42... hxg4 {[%clk 0:00:02.2]} 43.
hxg4 {[%clk 0:00:07.8]} 43... Kg7 {[%clk 0:00:01.7]} 44. Kg3 {[%clk 0:00:07.5]}
44... Rf7 {[%clk 0:00:02.6]} 45. Re8 {[%clk 0:00:06]} 45... Qd6+ {[%clk
0:00:03]} 46. Kf2 {[%clk 0:00:04.6]} 46... Kf6 {[%clk 0:00:02.3]} 47. Qb2+
{[%clk 0:00:03.9]} 1-0

[Event "*** SCC Grand Prix: Titled Tuesday Blitz"]
[Site "Chess.com"]
[Date "2020.07.14"]
[Round "4"]
[White "Eternauta2400"]
[Black "BillieKimbah"]
[Result "0-1"]
[WhiteElo "2650"]
[BlackElo "2901"]
[TimeControl "180+1"]
[EndTime "10:40:04 PDT"]
[Termination "BillieKimbah won on time"]

1. c4 {[%clk 0:03:00.9]} 1... e6 {[%clk 0:02:58.8]} 2. g3 {[%clk 0:03:00.8]}
2... d5 {[%clk 0:02:58.7]} 3. Bg2 {[%clk 0:03:01.2]} 3... Nf6 {[%clk 0:02:59.3]}
4. Nf3 {[%clk 0:03:01.7]} 4... d4 {[%clk 0:02:59.8]} 5. b4 {[%clk 0:02:57.9]}
5... Bxb4 {[%clk 0:02:53.2]} 6. Qa4+ {[%clk 0:02:52.6]} 6... Nc6 {[%clk
0:02:53.2]} 7. Ne5 {[%clk 0:02:52.8]} 7... Rb8 {[%clk 0:02:48.4]} 8. Nxc6 {[%clk
0:02:46.4]} 8... bxc6 {[%clk 0:02:47.6]} 9. Bxc6+ {[%clk 0:02:46.3]} 9... Bd7
{[%clk 0:02:44.2]} 10. O-O {[%clk 0:02:42.7]} 10... O-O {[%clk 0:02:40.2]} 11.
d3 {[%clk 0:02:38.9]} 11... Bxc6 {[%clk 0:02:10.8]} 12. Qxc6 {[%clk 0:02:38.1]}
12... Qd7 {[%clk 0:02:11.7]} 13. Qf3 {[%clk 0:02:33.5]} 13... e5 {[%clk
0:02:04.5]} 14. Bg5 {[%clk 0:02:31.7]} 14... Rb6 {[%clk 0:01:59.9]} 15. a3
{[%clk 0:02:16]} 15... Ba5 {[%clk 0:01:58.5]} 16. Bd2 {[%clk 0:01:52.6]} 16...
Qa4 {[%clk 0:01:47.8]} 17. Bxa5 {[%clk 0:01:45.6]} 17... Qxa5 {[%clk 0:01:48.7]}
18. Ra2 {[%clk 0:01:43.8]} 18... Rb3 {[%clk 0:01:30.9]} 19. Nd2 {[%clk
0:01:00.2]} 19... Rxa3 {[%clk 0:01:30.8]} 20. Rxa3 {[%clk 0:01:00.7]} 20... Qxa3
{[%clk 0:01:31.7]} 21. Ne4 {[%clk 0:01:01.1]} 21... Nd7 {[%clk 0:00:41.5]} 22.
Qf5 {[%clk 0:00:49.5]} 22... Qe7 {[%clk 0:00:41.3]} 23. Rb1 {[%clk 0:00:48.6]}
23... Nb6 {[%clk 0:00:41.3]} 24. Rb5 {[%clk 0:00:35.5]} 24... Re8 {[%clk
0:00:36.1]} 25. Ra5 {[%clk 0:00:33.7]} 25... Nc8 {[%clk 0:00:29.8]} 26. c5
{[%clk 0:00:28]} 26... h6 {[%clk 0:00:29.5]} 27. h4 {[%clk 0:00:24.7]} 27... Qe6
{[%clk 0:00:22.4]} 28. Qf3 {[%clk 0:00:22.3]} 28... a6 {[%clk 0:00:18.3]} 29.
Kg2 {[%clk 0:00:19.4]} 29... Ne7 {[%clk 0:00:18.4]} 30. Nd2 {[%clk 0:00:18]}
30... f5 {[%clk 0:00:15.5]} 31. Qb7 {[%clk 0:00:17.5]} 31... Nd5 {[%clk
0:00:09.9]} 32. Rxa6 {[%clk 0:00:15.9]} 32... Qf7 {[%clk 0:00:10.5]} 33. Nc4
{[%clk 0:00:15.5]} 33... e4 {[%clk 0:00:10.7]} 34. Ra8 {[%clk 0:00:13.3]} 34...
Rxa8 {[%clk 0:00:07.1]} 35. Qxa8+ {[%clk 0:00:14.1]} 35... Kh7 {[%clk
0:00:07.8]} 36. Ne5 {[%clk 0:00:13.8]} 36... Qe6 {[%clk 0:00:07.6]} 37. Nc4
{[%clk 0:00:09.5]} 37... f4 {[%clk 0:00:07.9]} 38. Qf8 {[%clk 0:00:05.4]} 38...
exd3 {[%clk 0:00:06.5]} 39. exd3 {[%clk 0:00:05.6]} 39... Nf6 {[%clk 0:00:06.5]}
40. Qa8 {[%clk 0:00:01.9]} 40... Qf5 {[%clk 0:00:05.8]} 41. Qf3 {[%clk
0:00:01.8]} 41... Qg6 {[%clk 0:00:04.2]} 42. g4 {[%clk 0:00:01.6]} 42... Nxg4
{[%clk 0:00:04.1]} 43. Kh3 {[%clk 0:00:01.5]} 43... Nf6 {[%clk 0:00:02.5]} 44.
Ne5 {[%clk 0:00:01.9]} 44... Qf5+ {[%clk 0:00:02.8]} 45. Ng4 {[%clk 0:00:01.5]}
45... h5 {[%clk 0:00:02.8]} 46. Qe4 {[%clk 0:00:01.5]} 46... Nxe4 {[%clk
0:00:02.8]} 0-1